bitfinex-derivatives/quotes_ETHF0:USTF0_20250416
["timestamp","ask_amount","ask_price","bid_price","bid_amount"]
[1744829249470,0.00961137,1561.4,1561.3,9.48875]
[1744829250262,0.00961137,1561.4,1561.3,6.99205]
[1744829250469,0.00961137,1561.4,1561.3,47.79205]
[1744829251372,0.00961137,1561.4,1561.3,45.28875]
[1744829253768,1.29048137,1561.4,1561.3,4.48875]
[1744829253976,1.29048137,1561.4,1561.3,3.2078]
[1744829254369,1.29048137,1561.4,1561.3,4.48875]
[1744829254873,0.00961137,1561.4,1561.3,4.48875]
[1744829255073,1.29048137,1561.4,1561.3,4.48875]
[1744829255668,0.00961137,1561.4,1561.3,4.48875]
[1744829255869,3.73138137,1561.4,1561.3,4.48875]
[1744829256271,2.45051137,1561.4,1561.3,4.48875]
[1744829256477,0.00961137,1561.4,1561.3,4.48875]
[1744829256976,0.00961137,1561.4,1561.3,9.48875]
[1744829259280,1.37e-06,1561.4,1561.3,9.48875]
[1744829259469,1.37e-06,1561.4,1561.3,50.28875]
[1744829259671,2.3692,1562.0,1561.9,1.28046]
[1744829259872,3.64958,1562.0,1561.9,3.2078]
[1744829260176,1.28027,1562.2,1562.1,1.28027]
[1744829260379,3.61507,1562.2,1562.1,4.48807]
[1744829260570,3.61507,1562.2,1561.9,5.7259]
[1744829260571,1.28038,1562.0,1561.9,3.2078]
[1744829260772,3.20096,1562.0,1561.5,3.2078]
[1744829260972,1.28071,1561.6,1561.5,3.2078]
[1744829261164,1.28071,1561.6,1561.5,4.48859]
[1744829261370,3.68694,1561.7,1561.6,1.28071]
[1744829261570,2.4063,1561.7,1561.6,1.28071]
[1744829261976,1.28048,1561.9,1561.8,1.28054]
[1744829262175,2.4063,1562.0,1561.8,3.2078]
[1744829262376,1.28046,1561.9,1561.8,3.2078]
[1744829262680,2.4063,1562.0,1561.8,4.48834]
[1744829262884,1.28046,1561.9,1561.8,4.48834]
[1744829263072,3.68671,1562.0,1561.9,1.28046]
[1744829263378,2.4063,1562.0,1561.9,1.28046]
[1744829263876,1.28046,1561.9,1561.8,4.48829]
[1744829264083,3.68674,1562.0,1561.9,1.28046]
[1744829264382,1.28046,1561.9,1561.8,3.2078]
[1744829264584,3.68256,1561.9,1561.8,4.48834]
[1744829264973,2.4021,1561.9,1561.8,4.48834]
[1744829265173,3.68256,1561.9,1561.8,4.48834]
[1744829265882,3.68256,1561.9,1561.8,3.2078]
[1744829266584,1.28046,1561.9,1561.8,3.2078]
[1744829267780,1.28046,1561.9,1561.8,4.48834]
[1744829267971,1.28046,1561.9,1561.8,3.2078]
[1744829269386,1.28054,1561.8,1561.7,1.28061]
[1744829269583,1.28054,1561.8,1561.7,4.48841]
[1744829270079,1.28071,1561.6,1561.5,3.2078]
[1744829270483,8.70331,1561.6,1561.5,3.2078]
[1744829271488,8.70331,1561.6,1561.5,4.48859]
[1744829271785,13.70331,1561.6,1561.5,3.2078]
[1744829272094,13.70331,1561.6,1561.4,0.00961137]
[1744829272095,1.28079,1561.5,1561.4,0.00961137]
[1744829272283,3.74689,1561.5,1561.4,0.00961137]
[1744829272485,1.28095,1561.3,1561.2,3.2078]
[1744829272680,6.41034,1561.3,1560.7,8.29327442]
[1744829272982,1.28136,1560.8,1560.7,8.29327442]
[1744829273393,3.68255,1560.9,1560.8,1.28136]
[1744829273689,3.69212137,1560.9,1560.8,3.2078]
[1744829274276,1.28136,1560.8,1560.7,8.29327442]
[1744829274585,3.68256,1560.8,1560.7,8.29327442]
[1744829274981,6.17536,1560.8,1560.7,8.29327442]
[1744829275584,8.57056,1560.8,1560.7,8.29327442]
[1744829276092,1.28145,1560.7,1560.6,0.00961137]
[1744829276282,3.69145,1560.7,1560.6,0.00961137]
[1744829277279,2.41,1560.7,1560.6,1.29114137]
[1744829277484,3.69145,1560.7,1560.6,0.00961137]
[1744829278483,3.21741137,1560.9,1560.6,0.00961137]
[1744829278692,0.00961137,1560.9,1560.8,3.2078]
[1744829278993,6.33319137,1560.9,1560.8,3.2078]
[1744829279489,1.28145,1560.7,1560.6,0.00961137]
[1744829280088,11.45865137,1560.9,1560.7,1.28143]
[1744829280089,1.28145,1560.8,1560.7,1.28143]
[1744829280289,1.28145,1560.8,1560.6,0.00961137]
[1744829280290,1.28145,1560.7,1560.6,0.00961137]
[1744829280492,2.5243,1560.8,1560.7,1.28145]
[1744829280691,0.00961137,1560.9,1560.8,1.28136]
[1744829280891,0.00961137,1560.9,1560.7,3.2078]
[1744829281197,3.81521137,1560.9,1560.8,1.28136]
[1744829281597,1.28136,1560.8,1560.7,7.04977]
[1744829281798,3.80566,1560.8,1560.7,7.04977]
[1744829282295,2.5243,1560.8,1560.7,7.04977]
[1744829282498,3.80566,1560.8,1560.7,7.04977]
[1744829282697,2.5243,1560.8,1560.7,7.04977]
[1744829283002,0.00961137,1560.9,1560.8,1.28136]
[1744829283393,0.00961137,1560.9,1560.8,6.28136]
[1744829285307,0.00961137,1560.9,1560.8,1.28136]
[1744829285604,0.00961137,1560.9,1560.8,6.28136]
[1744829285900,0.00961137,1560.9,1560.8,8.62206]
[1744829286200,12.53494,1561.5,1560.8,8.62206]
[1744829286201,6.95893006,1561.6,1561.5,1.28079]
[1744829286398,2.4518,1561.9,1561.8,1.28054]
[1744829286602,3.73232,1561.9,1561.7,3.2078]
[1744829286795,2.4518,1561.9,1561.7,3.2078]
[1744829287111,1.28071,1561.6,1561.5,6.92]
[1744829287312,6.14789,1561.8,1561.5,3.2078]
[1744829287512,1.2805,1561.9,1561.8,1.28054]
[1744829287712,3.7323,1561.9,1561.7,1.28057]
[1744829288017,3.73231,1561.9,1561.8,4.48834]
[1744829288308,2.4518,1561.9,1561.8,4.48834]
[1744829288712,3.73226,1561.9,1561.8,4.48834]
[1744829288910,3.73226,1561.9,1561.8,3.2078]
[1744829289108,3.73226,1561.9,1561.8,4.48834]
[1744829289715,3.73226,1561.9,1561.8,3.2078]
[1744829289909,3.73226,1561.9,1561.8,4.48834]
[1744829290119,3.73226,1561.9,1561.8,3.2078]
[1744829291016,3.73226,1561.9,1561.8,4.48834]
[1744829291215,3.73226,1561.9,1561.8,3.2078]
[1744829291715,1.28071,1561.6,1561.5,3.2078]
[1744829291911,0.00961137,1562.0,1561.7,1.28058]
[1744829292218,1.28054,1561.8,1561.7,3.2078]
[1744829292413,1.28054,1561.8,1561.7,4.48843]
[1744829292727,1.28071,1561.6,1561.5,13.76349]
[1744829293214,1.28063,1561.8,1561.7,1.28063]
[1744829293420,2.46941137,1562.0,1561.8,1.2805]
[1744829293720,3.74986137,1562.0,1561.9,1.28046]
[1744829293914,10.67054137,1562.0,1561.5,3.2078]
[1744829294120,1.28079,1561.5,1561.4,3.70340137]
[1744829294518,1.28079,1561.5,1561.4,3.70341137]
[1744829294723,3.78577,1561.6,1561.5,1.28075]
[1744829295020,3.78577,1561.6,1561.5,2.413]
[1744829295219,3.78577,1561.6,1561.5,3.69379]
[1744829295420,3.78571,1561.6,1561.5,6.90159]
[1744829295719,2.505,1561.6,1561.5,6.90159]
[1744829296020,3.21069137,1562.0,1561.5,6.90159]
[1744829296021,1.2806,1561.8,1561.7,1.28057]
[1744829296423,1.2806,1561.8,1561.5,6.90159]
[1744829296424,1.28067,1561.7,1561.6,1.28064]
[1744829297515,1.28071,1561.6,1561.5,6.90152]
[1744829299320,1.28071,1561.6,1561.5,5.6208]
[1744829299525,1.28079,1561.5,1561.4,0.00961137]
[1744829300323,1.28076,1561.6,1561.5,1.28079]
[1744829300518,1.28076,1561.6,1561.5,3.2078]
[1744829300724,1.28079,1561.5,1561.4,1.29046137]
[1744829300921,1.28079,1561.5,1561.4,3.72446137]
[1744829301122,3.56959,1561.5,1561.4,3.72446137]
[1744829301428,3.56959,1561.5,1561.4,0.00961137]
[1744829302425,9.8373,1561.5,1560.6,3.2078]
[1744829302626,1.28153,1560.6,1560.5,12.00887442]
[1744829303420,1.28153,1560.6,1560.5,8.29327442]
[1744829304121,1.28161,1560.5,1560.4,0.00961137]
[1744829304722,1.28177,1560.3,1560.2,8.29327442]
[1744829305321,1.28177,1560.3,1560.2,3.10494442]
[1744829305322,8.56107,1560.3,1560.2,3.10494442]
[1744829305527,1.28186,1560.2,1560.1,8.45846743]
[1744829305823,3.56116,1560.2,1560.1,7.16688743]
[1744829306121,8.56116,1560.2,1560.1,7.16688743]
[1744829306526,2.2793,1560.2,1560.1,7.16688743]
[1744829306719,3.74205,1560.4,1560.2,1.2818]
[1744829306915,1.28186,1560.2,1560.1,7.16688743]
[1744829307730,1.28164,1560.5,1560.1,12.16688743]
[1744829308025,3.61717,1560.5,1560.4,1.28169]
[1744829308225,2.3355,1560.5,1560.4,1.28169]
[1744829308428,3.61711,1560.5,1560.4,2.4775]
[1744829309225,1.28169,1560.4,1560.3,3.2078]
[1744829309431,1.28177,1560.3,1560.2,8.20081]
[1744829310030,3.76394,1560.4,1560.3,1.28177]
[1744829310328,6.37462265,1560.6,1560.5,1.28161]
[1744829311130,6.37462265,1560.6,1560.5,3.73571]
[1744829311425,6.37462265,1560.6,1560.5,44.53571]
[1744829312730,2.49181137,1560.7,1560.6,1.28153]
[1744829312931,2.49181137,1560.7,1560.6,4.48933]
[1744829313228,3.77326137,1560.7,1560.6,4.48933]
[1744829313623,0.00961137,1560.7,1560.6,4.48933]
[1744829314132,0.00961137,1560.7,1560.6,16.40633]
[1744829314331,0.00961137,1560.7,1560.6,11.40633]
[1744829314628,0.00961137,1560.7,1560.6,16.40633]
[1744829315030,0.00961137,1560.7,1560.6,11.40633]
[1744829316018,2.3513,1561.3,1560.8,3.20324]
[1744829316224,2.441,1561.3,1561.2,1.28104]
[1744829316428,2.351,1561.6,1561.3,1.2809]
[1744829316429,1.28087,1561.4,1561.3,1.2809]
[1744829316730,1.28094,1561.4,1561.3,1.28095]
[1744829316930,1.28095,1561.3,1561.2,1.28097]
[1744829317130,1.28095,1561.3,1561.2,1.29058137]
[1744829317329,1.28093,1561.4,1561.3,1.28095]
[1744829318032,1.28095,1561.3,1561.2,1.37e-06]
[1744829318232,1.2816,1560.6,1560.4,11.40544]
[1744829318433,3.20351,1560.8,1560.4,11.40544]
[1744829318733,1.28161,1560.5,1560.4,8.19764]
[1744829319033,3.67529,1560.7,1560.6,1.28153]
[1744829319219,1.29104137,1560.8,1560.7,1.28145]
[1744829319419,0.00961137,1560.8,1560.7,1.28145]
[1744829319632,1.28121,1561.0,1560.7,8.20362]
[1744829319829,1.28121,1561.0,1560.9,3.2078]
[1744829320033,3.67499,1561.1,1560.9,3.2078]
[1744829320234,4.6704,1561.4,1561.1,1.28107]
[1744829320433,1.28104,1561.2,1561.1,1.28107]
[1744829321036,2.40341137,1561.3,1561.2,1.28104]
[1744829321330,0.00961137,1561.3,1561.2,1.28104]
[1744829321632,0.00961137,1561.3,1561.2,3.72664]
[1744829322027,0.00961137,1561.3,1561.2,15.64264]
[1744829322228,3.73276,1561.7,1561.6,1.28071]
[1744829322628,6.37462265,1562.0,1561.6,1.28071]
[1744829322830,7.65500265,1562.0,1561.9,4.48826]
[1744829323131,8.48707309,1562.1,1561.8,3.2078]
[1744829323345,8.48707309,1562.1,1562.0,4.48818]
[1744829323346,8.49668446,1562.1,1562.0,4.48818]
[1744829323530,8.49668446,1562.1,1561.8,4.49793137]
[1744829323725,1.28046,1561.9,1561.8,0.00961137]
[1744829324026,2.4521,1562.0,1561.9,1.28046]
[1744829324227,8.49668446,1562.1,1562.0,1.28038]
[1744829324433,8.49668446,1562.1,1562.0,4.48818]
[1744829324728,8.49668446,1562.1,1562.0,45.28818]
[1744829325434,9.77698446,1562.1,1562.0,44.0078]
[1744829325637,10.95118446,1562.1,1562.0,45.28818]
[1744829326142,12.23148446,1562.1,1562.0,44.0078]
[1744829326325,12.23148446,1562.1,1562.0,3.2078]
[1744829326524,10.95118446,1562.1,1562.0,6.73188]
[1744829326731,12.23148446,1562.1,1562.0,3.2078]
[1744829326933,1.28038,1562.0,1561.9,40.8]
[1744829327132,2.4545,1562.0,1561.9,44.0078]
[1744829327340,3.73488,1562.0,1561.9,40.8]
[1744829327534,1.28046,1561.9,1561.8,0.00961137]
[1744829327837,3.20163,1561.7,1561.3,10.1218]
[1744829328039,1.28087,1561.4,1561.3,6.914]
[1744829328237,1.28095,1561.3,1561.2,1.28104]
[1744829328430,1.28095,1561.3,1561.1,44.0078]
[1744829328625,3.72674,1561.2,1561.1,45.28885]
[1744829328831,3.72674,1561.2,1561.1,4.48885]
[1744829329941,2.4457,1561.2,1561.1,4.48885]
[1744829330441,1.28112,1561.1,1561.0,2.45821137]
[1744829330638,2.4457,1561.2,1561.1,1.28112]
[1744829330839,2.4457,1561.2,1561.1,4.48892]
[1744829331440,0.00961137,1561.3,1561.2,1.28104]
[1744829331740,2.38421137,1561.3,1561.2,3.74964]
[1744829332843,3.66516137,1561.3,1561.2,3.74964]
[1744829333142,0.00961137,1561.3,1561.2,3.74964]
[1744829333444,6.40213,1562.0,1561.6,1.28064]
[1744829333635,5.4539,1562.0,1561.5,5.6449]
[1744829333835,3.20137,1561.8,1561.4,8.19481]
[1744829334030,6.40253,1561.9,1561.5,4.48855]
[1744829334339,1.28078,1561.6,1561.4,6.914]
[1744829334643,1.28077,1561.6,1561.5,1.28079]
[1744829334835,2.543,1561.6,1561.5,4.48859]
[1744829335032,1.28065,1561.7,1561.5,5.6449]
[1744829335238,1.28069,1561.7,1561.6,1.2807]
[1744829335641,1.28071,1561.6,1561.5,1.28073]
[1744829335852,2.543,1561.8,1561.5,3.2078]
[1744829336049,1.28075,1561.6,1561.5,1.28076]
[1744829336240,1.28079,1561.5,1561.4,8.1948]
[1744829336548,1.28079,1561.5,1561.4,6.914]
[1744829337342,2.5794,1561.6,1561.5,1.28079]
[1744829337537,0.00961137,1561.9,1561.8,1.28054]
[1744829337944,0.00961137,1561.9,1561.8,8.19454]
[1744829338648,2.58901137,1561.9,1561.5,6.904]
[1744829338844,2.58901137,1561.9,1561.6,1.2807]
[1744829338845,1.2807,1561.7,1561.6,1.2807]
[1744829339150,1.28069,1561.7,1561.6,1.2807]
[1744829339847,1.28071,1561.6,1561.5,6.904]
[1744829340048,3.77611,1561.6,1561.5,6.904]
[1744829340243,7.4954,1561.6,1561.2,4.48877]
[1744829340548,1.28092,1561.4,1561.3,1.28093]
[1744829340846,3.20201,1561.5,1561.0,12.55601137]
[1744829341044,1.28112,1561.1,1561.0,11.40259137]
[1744829341244,1.28112,1561.1,1561.0,6.91361137]
[1744829341450,1.28112,1561.1,1561.0,0.00961137]
[1744829341943,8.73310462,1561.1,1560.7,1.28137]
[1744829342246,3.20324,1560.9,1560.5,48.98555]
[1744829342448,1.28153,1560.6,1560.5,6.904]
[1744829342652,2.4954,1560.8,1560.7,1.28145]
[1744829342950,1.28146,1560.7,1560.6,0.00961137]
[1744829343754,8.20381,1560.7,1560.3,1.28171]
[1744829343948,2.4866,1560.6,1560.2,3.2078]
[1744829344159,2.4866,1560.6,1560.5,1.28161]
[1744829344348,0.00961137,1560.9,1560.8,1.28136]
[1744829344656,2.49621137,1560.9,1560.8,1.28136]
[1744829345249,2.49621137,1560.9,1560.8,7.10136]
[1744829345453,2.49621137,1560.9,1560.8,2.6122]
[1744829345747,3.77749137,1560.9,1560.7,1.29099137]
[1744829345949,2.49621137,1560.9,1560.8,4.48916]
[1744829346354,1.28136,1560.8,1560.7,2.58591137]
[1744829346546,0.00961137,1560.9,1560.8,1.28136]
[1744829346944,0.00961137,1560.9,1560.8,4.48916]
[1744829347150,0.00961137,1560.9,1560.8,9.48916]
[1744829347547,2.478,1561.3,1561.1,1.28104]
[1744829347753,1.28112,1561.1,1561.0,3.2078]
[1744829348055,1.28136,1560.8,1560.7,0.00961137]
[1744829348250,1.28136,1560.8,1560.7,1.29103137]
[1744829348558,1.28136,1560.8,1560.7,0.00961137]
[1744829349154,3.67546,1560.8,1560.7,0.00961137]
[1744829349359,1.28169,1560.4,1560.3,3.2078]
[1744829349560,1.28169,1560.4,1560.3,1.28176]
[1744829349861,6.41187,1560.5,1560.1,4.48969]
[1744829350050,2.3941,1560.3,1560.2,1.28186]
[1744829350449,3.67587,1560.3,1560.2,3.64346]
[1744829350866,0.00961137,1560.9,1560.2,13.7707]
[1744829351150,4.48855,1561.6,1561.2,3.2026]
[1744829351444,4.48855,1561.6,1561.1,3.20276]
[1744829351445,10.09070678,1561.8,1561.4,3.20199]
[1744829351650,2.3941,1561.7,1561.6,1.28064]
[1744829352258,1.28071,1561.6,1561.5,6.85973137]
[1744829352654,12.67184824,1561.7,1561.6,1.28071]
[1744829353259,1.28071,1561.6,1561.5,3.21741137]
[1744829353454,3.69131,1561.6,1561.5,3.21741137]
[1744829353759,11.89911,1561.6,1561.5,0.00961137]
[1744829353958,1.28104,1561.2,1561.1,6.906]
[1744829354159,1.28139,1560.8,1560.6,3.2078]
[1744829354453,1.28139,1560.8,1560.6,1.28146]
[1744829354655,2.4106,1560.7,1560.6,4.48926]
[1744829354858,6.13115,1561.1,1560.7,3.20362]
[1744829355053,2.4859,1561.0,1560.9,1.28121]
[1744829355246,0.00961137,1561.1,1560.9,3.2078]
[1744829355451,0.00961137,1561.1,1561.0,3.7103]
[1744829356053,1.29073137,1561.1,1561.0,2.4291]
[1744829356360,1.29073137,1561.1,1561.0,1.2812]
[1744829356561,0.00961137,1561.1,1561.0,1.2812]
[1744829356859,0.00961137,1561.1,1561.0,3.7103]
[1744829357259,2.49551137,1561.1,1561.0,3.7103]
[1744829357459,0.00961137,1561.1,1561.0,8.7103]
[1744829357659,0.00961137,1561.1,1561.0,49.5103]
[1744829359262,6.37032304,1561.5,1561.4,1.28087]
[1744829359660,7.65111304,1561.5,1561.4,1.28087]
[1744829359859,6.37032304,1561.5,1561.4,4.48867]
[1744829360160,8.49376406,1561.6,1561.5,1.28079]
[1744829360358,8.50337543,1561.6,1561.5,3.64109]
[1744829360559,8.50337543,1561.6,1561.5,44.44109]
[1744829361969,1.29032137,1561.6,1561.5,44.44109]
[1744829362161,3.70272137,1561.6,1561.5,43.1603]
[1744829362362,2.42201137,1561.6,1561.5,44.44109]
[1744829362960,0.00961137,1561.6,1561.5,44.44109]
[1744829364667,8.49376406,1562.5,1561.5,48.1603]
[1744829364861,8.49376406,1562.5,1562.4,1.28005]
[1744829365163,12.15593406,1562.5,1562.4,1.28005]
[1744829365359,12.15593406,1562.5,1562.2,3.2078]
[1744829365360,12.15593406,1562.5,1562.3,3.65139]
[1744829365555,12.15593406,1562.5,1562.4,1.28005]
[1744829365764,1.28005,1562.4,1562.3,3.6514]
[1744829365970,1.28013,1562.3,1562.2,0.00961137]
[1744829366165,4.48793,1562.3,1562.2,0.00961137]
[1744829366359,11.87013,1562.3,1562.2,0.00961137]
[1744829368264,1.28061,1561.8,1561.5,50.1388]
[1744829368564,4.9309,1562.2,1561.7,3.20149]
[1744829368767,1.28038,1562.0,1561.9,1.2804]
[1744829369168,2.5329,1562.1,1561.9,1.2804]
[1744829369471,3.82287137,1562.1,1562.0,1.28038]
[1744829369665,6.40734,1562.7,1562.1,3.20075]
[1744829369970,4.9309,1562.7,1562.4,1.27998]
[1744829370167,1.27997,1562.5,1562.4,1.27998]
[1744829370567,1.28005,1562.4,1562.3,3.89677]
[1744829370867,0.00961137,1562.5,1562.4,1.28005]
[1744829371068,1.28005,1562.4,1562.3,3.89679]
[1744829371368,1.28013,1562.3,1562.2,1.28018]
[1744829371575,1.28013,1562.3,1562.2,7.10468]
[1744829371774,1.28960137,1562.5,1562.4,1.28005]
[1744829371960,0.00961137,1562.5,1562.4,4.48785]
[1744829372272,1.28013,1562.3,1562.2,7.10469]
[1744829372575,3.72544137,1562.5,1562.4,1.28005]
[1744829372765,2.44541137,1562.5,1562.4,1.28005]
[1744829372962,1.28006,1562.4,1562.3,1.28005]
[1744829373273,2.44541137,1562.5,1562.4,1.28005]
[1744829373476,1.28960137,1562.5,1562.4,1.28005]
[1744829373771,1.28961137,1562.5,1562.4,1.28005]
[1744829374169,1.28005,1562.4,1562.3,8.1701]
[1744829374474,3.82665,1562.4,1562.3,8.1701]
[1744829374663,3.82665,1562.4,1562.3,6.89]
[1744829374865,3.82665,1562.4,1562.3,8.17013]
[1744829375278,1.28013,1562.3,1562.2,3.2078]
[1744829375574,1.2803,1562.1,1562.0,4.48813]
[1744829375775,1.2803,1562.1,1562.0,3.2078]
[1744829376164,1.28028,1562.2,1562.0,3.2078]
[1744829376363,2.6171,1562.4,1562.3,1.28013]
[1744829376563,3.72415,1562.4,1562.3,1.28013]
[1744829376774,2.4441,1562.4,1562.3,1.28013]
[1744829377075,2.4441,1562.4,1562.3,3.77563]
[1744829377272,3.72415,1562.4,1562.3,3.77563]
[1744829377473,2.4441,1562.4,1562.3,1.28013]
[1744829378278,2.45371137,1562.5,1562.4,1.28005]
[1744829378576,1.28005,1562.4,1562.3,1.28009]
[1744829378777,2.45371137,1562.5,1562.3,1.28009]
[1744829379080,3.73375137,1562.5,1562.3,1.28009]
[1744829379373,2.45371137,1562.5,1562.2,4.48796]
[1744829379678,1.28013,1562.3,1562.2,4.48802]
[1744829380172,1.28012,1562.4,1562.3,1.28012]
[1744829380367,1.37e-06,1562.5,1562.4,1.28005]
[1744829380572,8.49376406,1562.8,1562.7,1.27981]
[1744829380573,6.43351406,1562.8,1562.7,1.27981]
[1744829380893,15.06894824,1563.5,1563.3,1.2793]
[1744829381070,2.3703,1563.4,1562.9,3.2078]
[1744829381270,1.27956,1563.0,1562.9,3.2078]
[1744829381481,3.19831,1563.3,1562.9,3.2078]
[1744829381777,1.27956,1563.0,1562.8,8.17728137]
[1744829381979,3.64994,1562.9,1562.8,6.89761137]
[1744829382279,0.00961137,1563.1,1562.9,1.27958]
[1744829382280,1.28909137,1563.1,1562.9,1.27958]
[1744829382467,1.27956,1563.0,1562.9,5.6148]
[1744829382669,1.27956,1563.0,1562.9,3.2078]
[1744829382874,3.88035137,1563.1,1562.9,4.48744]
[1744829383172,2.60081137,1563.1,1562.9,4.48739]
[1744829383375,1.27956,1563.0,1562.9,3.2078]
[1744829383583,1.27956,1563.0,1562.9,4.48744]
[1744829383875,2.60081137,1563.1,1562.9,3.2078]
[1744829384178,2.60081137,1563.1,1563.0,1.27956]
[1744829384380,3.88029137,1563.1,1563.0,2.407]
[1744829385080,2.60081137,1563.1,1563.0,3.68656]
[1744829385777,2.60081137,1563.1,1563.0,2.407]
[1744829386084,2.60081137,1563.1,1563.0,1.27956]
[1744829386387,2.60081137,1563.1,1563.0,3.80226]
[1744829386883,1.27956,1563.0,1562.9,3.2078]
[1744829387185,1.27964,1562.9,1562.8,0.00961137]
[1744829387386,6.91634,1562.9,1562.8,1e-08]
[1744829387585,1.28005,1562.4,1562.3,3.2078]
[1744829387974,3.20041,1562.3,1561.7,4.8698]
[1744829388174,3.20075,1562.1,1561.6,19.44349127]
[1744829388390,1.28063,1561.7,1561.6,12.55749127]
[1744829388571,0.00961137,1561.8,1561.7,1.2806]
[1744829388776,0.00961137,1561.8,1561.7,4.4884]
[1744829388978,0.00961137,1561.8,1561.7,11.7686]
[1744829389178,3.70906,1562.3,1561.8,3.20125]
[1744829389487,4.8138,1562.3,1561.7,11.5202]
[1744829389678,6.09397,1562.3,1562.1,1.28025]
[1744829389872,1.28042,1562.0,1561.7,11.5202]
[1744829390072,1.28042,1562.0,1561.8,1.28051]
[1744829390386,0.00961137,1562.0,1561.9,1.28046]
[1744829390579,0.00961137,1562.0,1561.7,3.5608]
[1744829390775,0.00961137,1562.0,1561.8,1.28051]
[1744829390979,2.39451137,1562.0,1561.6,6.887]
[1744829391177,1.28053,1561.9,1561.7,1.28061]
[1744829391377,2.4273,1561.8,1561.7,3.57951]
[1744829391678,1.28058,1561.8,1561.6,8.16765]
[1744829391886,3.70788,1561.8,1561.6,9.1859]
[1744829392082,0.00961137,1562.0,1561.6,12.3937]
[1744829392282,0.00961137,1562.0,1561.9,1.28046]
[1744829392776,0.00961137,1562.0,1561.9,8.57936]
[1744829393177,0.00961137,1562.0,1561.9,3.57936]
[1744829394181,0.00961137,1562.0,1561.9,8.57936]
[1744829394676,0.00961137,1562.0,1561.9,3.57936]
[1744829395583,1.28999137,1562.0,1561.9,2.2989]
[1744829395783,0.00961137,1562.0,1561.9,3.57936]
[1744829396881,1.28999137,1562.0,1561.9,3.57936]
[1744829397084,2.27091137,1562.0,1561.9,3.57936]
[1744829397582,0.00961137,1562.0,1561.9,3.57936]
[1744829397788,0.00961137,1562.0,1561.9,8.57936]
[1744829398589,0.00961137,1562.0,1561.9,3.57936]
[1744829398881,1.37e-06,1562.0,1561.9,14.43536]
[1744829399085,2.3679,1562.7,1562.6,1.27989]
[1744829399086,2.4149,1562.7,1562.6,1.27989]
[1744829399685,2.4149,1562.7,1562.5,43.023]
[1744829399883,1.27997,1562.5,1562.4,8.15404]
[1744829400086,0.00961137,1562.6,1562.4,8.15404]
[1744829400283,1.27997,1562.5,1562.4,6.874]
[1744829400485,1.27997,1562.5,1562.4,40.8]
[1744829400685,3.65604,1562.5,1562.3,5.86561137]
[1744829400884,1.28005,1562.4,1562.3,0.00961137]
[1744829401088,3.65605,1562.4,1562.3,0.00961137]
[1744829401287,8.65605,1562.4,1562.3,0.00961137]
[1744829401587,3.65605,1562.4,1562.3,0.00961137]
[1744829401792,3.65605,1562.4,1562.0,10.0808]
[1744829401793,2.376,1562.4,1562.0,10.0808]
[1744829401985,3.6561,1562.4,1562.1,2.4495]
[1744829402185,2.376,1562.4,1562.1,2.4495]
[1744829402387,2.376,1562.4,1562.3,1.28013]
[1744829402582,2.26381137,1562.6,1562.4,1.27999]
[1744829402782,2.376,1562.5,1562.4,1.27998]
[1744829402988,0.00961137,1562.6,1562.5,1.27997]
[1744829403294,6.91173442,1563.2,1562.8,1.27972]
[1744829403295,2.376,1562.9,1562.8,1.27972]
[1744829403894,2.376,1562.9,1562.8,4.48752]
[1744829404190,2.376,1562.9,1562.8,1.27972]
[1744829404392,0.00961137,1563.0,1562.9,1.27964]
[1744829404592,0.00961137,1563.0,1562.9,3.71834]
[1744829404796,1.27964,1562.9,1562.8,6.873]
[1744829404997,2.43411137,1563.0,1562.8,8.15272]
[1744829405189,3.71373137,1563.0,1562.8,8.15272]
[1744829405392,1.27964,1562.9,1562.8,8.15272]
[1744829405591,1.27997,1562.5,1562.4,9.1317]
[1744829405788,1.28005,1562.4,1562.3,0.00961137]
[1744829405994,3.70455,1562.4,1562.3,0.00961137]
[1744829406988,11.91235,1562.4,1562.3,0.00961137]
[1744829407499,1.28038,1562.0,1561.9,6.873]
[1744829407693,1.28054,1561.8,1561.6,98.8058]
[1744829407894,2.3507,1561.9,1561.6,102.30546]
[1744829408096,3.2078,1562.1,1561.6,99.09765]
[1744829408299,6.40898,1561.9,1561.4,22.63829127]
[1744829408493,2.36031137,1561.8,1561.5,0.00961137]
[1744829408999,1.28071,1561.6,1561.5,0.00961137]
[1744829409187,4.48851,1561.6,1561.5,0.00961137]
[1744829409393,1.28071,1561.6,1561.5,0.00961137]
[1744829410195,9.48851,1561.6,1561.5,0.00961137]
[1744829410391,8.71151,1561.6,1561.5,0.00961137]
[1744829410593,8.84948137,1561.8,1561.7,1.28063]
[1744829410594,0.00961137,1561.8,1561.7,1.28063]
[1744829410786,0.00961137,1561.8,1561.7,4.48843]
[1744829411289,0.00961137,1561.8,1561.7,3.72923]
[1744829411496,0.00961137,1561.8,1561.6,6.874]
[1744829411796,0.00961137,1561.8,1561.7,1.28063]
[1744829412194,2.44041137,1561.8,1561.7,1.28063]
[1744829412396,0.00961137,1561.8,1561.7,6.93703]
[1744829414401,2.39111137,1561.8,1561.7,4.48843]
[1744829414600,2.39111137,1561.8,1561.6,6.874]
[1744829414797,1.28063,1561.7,1561.6,6.874]
[1744829415203,1.28063,1561.7,1561.5,1.29036137]
[1744829415504,3.66221,1561.6,1561.5,1.29036137]
[1744829415909,3.66221,1561.6,1561.5,0.00961137]
[1744829416099,2.3815,1561.6,1561.5,0.00961137]
[1744829416406,2.3815,1561.6,1561.5,1.29040137]
[1744829416607,8.66221,1561.6,1561.5,0.00961137]
[1744829417001,8.66221,1561.6,1560.6,12.55749127]
[1744829417002,9.61177,1561.5,1560.6,12.55749127]
[1744829417201,3.20301,1561.0,1560.6,12.55749127]
[1744829417401,2.4516,1560.9,1560.6,15.76529127]